[Event "14th Chennai GM Open 2023"]
[Site "Chennai"]
[Date "2024.01.05"]
[Round "8.12"]
[White "Ramnathan, Balasubramaniam"]
[Black "Viani Antonio Dcunha"]
[Result "0-1"]
[ECO "A06"]
[WhiteElo "1916"]
[BlackElo "2407"]
[Annotator "RC"]
[PlyCount "60"]
[EventDate "2023.12.31"]
[EventType "swiss"]
[EventCountry "IND"]
[SourceTitle "playchess.com"]
[Source "ChessBase"]
[SourceQuality "1"]
[TimeControl "5400+30"]

1. Nf3 {[%emt 0:00:13]} d5 {[%emt 0:00:17]} 2. b3 {[%emt 0:01:01]} c5 {[%emt 0:00:13]} 3. e3 {[%emt 0:00:32]} Nf6 {[%emt 0:01:49]} 4. Bb2 {[%emt 0:00:25]} e6 {[%emt 0:02:54]} 5. Be2 {[%emt 0:00:44]} Nc6 {[%emt 0:00:29]} 6. O-O {[%emt 0:02:08]} Bd6 {[%emt 0:02:24]} 7. d4 {[%emt 0:01:31]} cxd4 {[%emt 0:02:27]} 8. Nxd4 {[%emt 0:02:31]} e5 {[%emt 0:07:25]} 9. Nxc6 {[%emt 0:02:53]} bxc6 {[%emt 0:00:06]} 10. c4 {[%emt 0:00:07]} O-O {[%emt 0:00:55]} 11. cxd5 {[%emt 0:03:50]} cxd5 {[%emt 0:00:09]} 12. Nc3 {[%emt 0:00:13]} Bb7 {[%emt 0:01:36]} 13. Nb5 {[%emt 0:05:36]} Bb8 {[%emt 0:00:25]} 14. f4 {[%emt 0:00:43]} d4 {[%emt 0:29:07]} 15. fxe5 {[%emt 0:17:44]} Qd5 {[%emt 0:01:41]} 16. Rf3 {[%emt 0:00:16]} Qxe5 {[%emt 0:02:33]} 17. Rh3 {[%emt 0:00:08]} Qg5 {[%emt 0:06:47]} 18. e4 {[%emt 0:21:06]} Bxe4 {[%emt 0:08:00]} 19. Qf1 {[%emt 0:00:16]} Nd5 {[%emt 0:09:18]} 20. Bf3 {[%emt 0:08:15]} Bxf3 {[%emt 0:04:31]} 21. Rxf3 {[%emt 0:03:34]} Ne3 {[%emt 0:01:28]} 22. Qe2 {[%emt 0:00:34]} Re8 {[%emt 0:03:30]} 23. g3 {[%emt 0:01:48]} Be5 {[%emt 0:03:45]} 24. Nxd4 {[%emt 0:06:04]} Ng4 {[%emt 0:02:23]} 25. Qg2 {[%emt 0:08:27]} Rad8 {[%emt 0:01:32]} 26. Rd1 {[%emt 0:02:57]} Bxd4+ {[%emt 0:01:17]} 27. Bxd4 {[%emt 0:00:17]} Rxd4 {[%emt 0:01:02]} 28. Rxd4 {[%emt 0:01:39]} Re1+ {[%emt 0:00:21]} 29. Qf1 {[%emt 0:02:30]} Rxf1+ {[%emt 0:00:08]} 30. Kxf1 {[%emt 0:00:11]} Nxh2+ {[%emt 0:00:12]} 0-1

[Event "14th Chennai GM Open 2023"]
[Site "Chennai"]
[Date "2024.01.05"]
[Round "8.13"]
[White "Nitin, S.."]
[Black "Kolla Bhaavan"]
[Result "1-0"]
[ECO "B11"]
[WhiteElo "2385"]
[BlackElo "1679"]
[Annotator "RC"]
[PlyCount "97"]
[EventDate "2023.12.31"]
[EventType "swiss"]
[EventCountry "IND"]
[SourceTitle "playchess.com"]
[Source "ChessBase"]
[SourceQuality "1"]
[TimeControl "5400+30"]

1. e4 {[%emt 0:00:35]} c6 {[%emt 0:02:36]} 2. Nc3 {[%emt 0:00:09]} d5 {[%emt 0:00:05]} 3. Qe2 {[%emt 0:00:07]} e6 {[%emt 0:14:04]} 4. Nf3 {[%emt 0:18:34]} d4 {[%emt 0:14:22]} 5. Nb1 {[%emt 0:02:33]} c5 {[%emt 0:04:14]} 6. d3 {[%emt 0:01:03]} Nc6 {[%emt 0:00:59]} 7. g3 {[%emt 0:00:14]} e5 {[%emt 0:07:57]} 8. Bg2 {[%emt 0:00:40]} g6 {[%emt 0:05:36]} 9. O-O {[%emt 0:04:30]} Bg7 {[%emt 0:00:48]} 10. a4 {[%emt 0:10:57]} Nge7 {[%emt 0:06:26]} 11. Na3 {[%emt 0:02:38]} O-O {[%emt 0:06:58]} 12. Nh4 {[%emt 0:07:59]} Be6 {[%emt 0:07:14]} 13. f4 {[%emt 0:01:30]} Qd7 {[%emt 0:04:54]} 14. Nf3 {[%emt 0:02:21]} f6 {[%emt 0:04:48]} 15. Nc4 {[%emt 0:04:32]} Rae8 {[%emt 0:02:45]} 16. Bd2 {[%emt 0:05:36]} Nc8 {[%emt 0:02:59]} 17. b3 {[%emt 0:02:50]} Nd6 {[%emt 0:03:59]} 18. Nh4 {[%emt 0:04:06]} Bg4 {[%emt 0:04:05]} 19. Qf2 {[%emt 0:01:12]} Nxc4 {[%emt 0:03:33]} 20. bxc4 {[%emt 0:00:15]} g5 {[%emt 0:02:08]} 21. Nf5 {[%emt 0:28:39]} Bxf5 {[%emt 0:00:00]} 22. exf5 {[%emt 0:00:30]} exf4 {[%emt 0:00:08]} 23. gxf4 {[%emt 0:00:00]} Qxf5 {[%emt 0:00:31]} 24. fxg5 {[%emt 0:00:00]} Qxf2+ {[%emt 0:00:06]} 25. Rxf2 {[%emt 0:00:00]} fxg5 {[%emt 0:00:13]} 26. Rb1 {[%emt 0:00:00]} Nd8 {[%emt 0:01:23]} 27. Bxb7 {[%emt 0:00:00]} h6 {[%emt 0:00:30]} 28. Bd5+ {[%emt 0:00:00]} Kh7 {[%emt 0:00:20]} 29. Rb5 {[%emt 0:00:00]} Rxf2 {[%emt 0:00:26]} 30. Kxf2 {[%emt 0:00:00]} Be5 {[%emt 0:00:20]} 31. Rxc5 {[%emt 0:00:00]} Bxh2 {[%emt 0:00:46]} 32. Rc8 {[%emt 0:00:00]} Rf8+ {[%emt 0:00:36]} 33. Kg2 {[%emt 0:00:00]} Be5 {[%emt 0:00:32]} 34. Bb4 {[%emt 0:00:00]} Re8 {[%emt 0:00:31]} 35. c5 {[%emt 0:00:00]} h5 {[%emt 0:00:36]} 36. c6 {[%emt 0:00:00]} g4 {[%emt 0:00:30]} 37. c7 {[%emt 0:00:00]} Bxc7 {[%emt 0:00:23]} 38. Rxc7+ {[%emt 0:00:00]} Kg6 {[%emt 0:00:04]} 39. Be4+ {[%emt 0:00:00]} Kf6 {[%emt 0:00:03]} 40. Rc8 {[%emt 0:00:00]} h4 {[%emt 0:00:05]} 41. Ba5 {[%emt 0:00:00]} Ke7 {[%emt 0:00:05]} 42. Bb4+ {[%emt 0:00:00]} Kf6 {[%emt 0:00:05]} 43. Bc5 {[%emt 0:00:00]} Ke5 {[%emt 0:00:04]} 44. Bxa7 {[%emt 0:00:00]} Rf8 {[%emt 0:00:36]} 45. Bb8+ {[%emt 0:00:00]} Ke6 {[%emt 0:00:08]} 46. Bc7 {[%emt 0:00:00]} g3 {[%emt 0:00:08]} 47. Bf3 {[%emt 0:00:00]} h3+ {[%emt 0:00:24]} 48. Kxg3 {[%emt 0:00:00]} h2 {[%emt 0:00:09]} 49. Bg2 {[%emt 0:00:00]} 1-0

[Event "14th Chennai GM Open 2023"]
[Site "Chennai"]
[Date "2024.01.05"]
[Round "8.14"]
[White "Khusenkhojaev, Muhammad"]
[Black "Sriram Adarsh Uppala"]
[Result "1-0"]
[ECO "D31"]
[WhiteElo "2366"]
[BlackElo "1900"]
[Annotator "RC"]
[PlyCount "87"]
[EventDate "2023.12.31"]
[EventType "swiss"]
[EventCountry "IND"]
[SourceTitle "playchess.com"]
[Source "ChessBase"]
[SourceQuality "1"]
[TimeControl "5400+30"]

1. Nf3 {[%emt 0:02:08]} d5 {[%emt 0:00:14]} 2. d4 {[%emt 0:00:11]} e6 {[%emt 0:00:49]} 3. c4 {[%emt 0:00:06]} a6 {[%emt 0:00:03]} 4. cxd5 {[%emt 0:02:26]} exd5 {[%emt 0:00:05]} 5. Nc3 {[%emt 0:00:05]} c6 {[%emt 0:00:04]} 6. Qc2 {[%emt 0:00:48]} Nf6 {[%emt 0:00:14]} 7. Bg5 {[%emt 0:00:13]} h6 {[%emt 0:00:30]} 8. Bxf6 {[%emt 0:00:11]} Qxf6 {[%emt 0:00:09]} 9. Nxd5 {[%emt 0:00:08]} Qd8 {[%emt 0:00:17]} 10. Nc3 {[%emt 0:02:17]} Be7 {[%emt 0:02:00]} 11. e3 {[%emt 0:00:12]} O-O {[%emt 0:00:07]} 12. Bc4 {[%emt 0:00:14]} Nd7 {[%emt 0:04:21]} 13. O-O {[%emt 0:01:23]} Nb6 {[%emt 0:05:37]} 14. Bb3 {[%emt 0:00:12]} Bd6 {[%emt 0:00:12]} 15. h3 {[%emt 0:01:02]} Kh8 {[%emt 0:03:28]} 16. e4 {[%emt 0:00:21]} f5 {[%emt 0:30:26]} 17. e5 {[%emt 0:00:49]} Bc7 {[%emt 0:02:37]} 18. Rfe1 {[%emt 0:00:15]} Qe7 {[%emt 0:31:25]} 19. d5 {[%emt 0:00:52]} cxd5 {[%emt 0:00:22]} 20. Nxd5 {[%emt 0:00:13]} Nxd5 {[%emt 0:00:08]} 21. Bxd5 {[%emt 0:00:10]} Ba5 {[%emt 0:01:02]} 22. Red1 {[%emt 0:00:09]} f4 {[%emt 0:02:08]} 23. e6 {[%emt 0:01:32]} Bxe6 {[%emt 0:01:49]} 24. Ne5 {[%emt 0:00:07]} Rf6 {[%emt 0:00:37]} 25. Ng6+ {[%emt 0:00:10]} Rxg6 {[%emt 0:00:12]} 26. Qxg6 {[%emt 0:00:05]} Re8 {[%emt 0:00:46]} 27. Bxe6 {[%emt 0:01:11]} Qxe6 {[%emt 0:00:10]} 28. Qxe6 {[%emt 0:00:02]} Rxe6 {[%emt 0:00:11]} 29. Kf1 {[%emt 0:00:05]} f3 {[%emt 0:01:31]} 30. gxf3 {[%emt 0:00:13]} Rf6 {[%emt 0:00:24]} 31. Rd5 {[%emt 0:00:22]} Bb6 {[%emt 0:00:16]} 32. Rd3 {[%emt 0:00:08]} Rf4 {[%emt 0:01:16]} 33. Re1 {[%emt 0:00:18]} Bc5 {[%emt 0:00:28]} 34. Re4 {[%emt 0:00:29]} Rf6 {[%emt 0:00:24]} 35. b4 {[%emt 0:00:15]} Bf8 {[%emt 0:00:18]} 36. Ke2 {[%emt 0:00:09]} Kh7 {[%emt 0:01:12]} 37. a3 {[%emt 0:01:01]} b6 {[%emt 0:00:27]} 38. Rd5 {[%emt 0:00:16]} Kg8 {[%emt 0:01:28]} 39. f4 {[%emt 0:00:12]} Kf7 {[%emt 0:01:03]} 40. f5 {[%emt 0:00:22]} Bd6 {[%emt 0:03:08]} 41. Rg4 {[%emt 0:03:45]} Bf8 {[%emt 0:00:50]} 42. Rg6 {[%emt 0:00:34]} Rxg6 {[%emt 0:01:51]} 43. fxg6+ {[%emt 0:00:27]} Kxg6 {[%emt 0:00:07]} 44. Rd8 {[%emt 0:00:05]} 1-0

[Event "14th Chennai GM Open 2023"]
[Site "Chennai"]
[Date "2024.01.06"]
[Round "9.1"]
[White "Srihari L R"]
[Black "Savchenko, Boris"]
[Result "1-0"]
[ECO "A62"]
[WhiteElo "2467"]
[BlackElo "2489"]
[Annotator "TA"]
[PlyCount "83"]
[EventDate "2023.12.31"]
[EventType "swiss"]
[EventCountry "IND"]
[SourceTitle "playchess.com"]
[Source "ChessBase"]
[SourceQuality "1"]
[TimeControl "5400+30"]

{[%evp 21,83,22,52,55,64,62,58,54,73,58,66,66,58,57,117,116,145,143,139,120,156,108,100,108,148,153,276,263,345,322,331,322,377,338,345,339,550,535,675,675,667,639,762,526,1827,1836,1660,1833,1775,1820,6287,5381,29983,29984,29981,1551,29982,29983,29986,29987,29987,29981,29981,29981]} 1. d4 {[%emt 1:31:00]} g6 {[%emt 0:08:05]} 2. Nf3 {[%emt 0:00:00]} Bg7 {[%emt 0:00:37]} 3. c4 {[%emt 0:00:00]} c5 {[%emt 0:00:16]} 4. d5 {[%emt 0:00:00]} d6 {[%emt 0:00:46]} 5. g3 {[%emt 0:00:00]} e6 {[%emt 0:06:07]} 6. Bg2 {[%emt 0:00:00]} exd5 {[%emt 0:00:11]} 7. cxd5 {[%emt 0:00:00]} Nf6 {[%emt 0:00:05]} 8. Nc3 {[%emt 0:00:00]} O-O {[%emt 0:00:10]} 9. O-O {[%emt 0:00:00]} a6 {[%emt 0:09:56]} 10. a4 {[%emt 0:00:00][%cal Ba2a4,Ba4a5][%mdl 32]} Re8 {[%emt 0:00:29]} 11. Bf4 {[%emt 0:00:00]} h6 {[%emt 0:05:52]} 12. Qc1 $1 {[%emt 0:00:00] The main line 12.Qc1 scores better than 12.Re1. A62: Modern Benoni: Fianchetto Variation without early ...Nbd7.} Kh7 {[%emt 0:04:32]} 13. a5 {[%emt 0:00:00] [#]} Nh5 $146 {[%emt 0:26:42]} ({Predecessor:} 13... Bf5 14. Nd2 g5 15. Be3 Nbd7 16. Nc4 Qc7 17. Bd2 b5 18. axb6 Nxb6 19. Nxb6 Qxb6 {½-½ Grahn,V (2133)-Stefansson,V (2484) Uppsala Young Champions 10th 2023 (1)}) 14. Bd2 $1 {[%emt 0:00:00] White is slightly better.} Bg4 {[%emt 0:08:54]} 15. Ra4 {[%emt 0:00:00]} Nf6 {[%emt 0:02:41]} 16. h3 {[%emt 0:00:00]} Bxf3 {[%emt 0:00:30]} 17. Bxf3 {[%emt 0:00:00]} Qe7 {[%emt 0:00:47]} (17... Nbd7 $14) 18. Rh4 $16 {[%emt 0:00:00][%cal Rd2h6]} Ng8 {[%emt 0:04:43]} 19. Re4 {[%emt 0:00:00]} Be5 {[%emt 0:00:34]} 20. Bg2 {[%emt 0:00:00] Hoping for f4. White is more active.} f5 {[%emt 0:01:39] [#]} 21. Ra4 {[%emt 0:00:00]} (21. Rc4 $142 $1) 21... Nd7 {[%emt 0:00:44]} 22. e4 {[%emt 0:00:00]} Qf7 {[%emt 0:02:30]} 23. exf5 {[%emt 0:00:00]} Qxf5 {[%emt 0:01:03]} (23... gxf5 $16 24. Qc2 Bd4) 24. Rh4 $18 {[%emt 0:00:00][%cal Rd2h6]} Bxc3 {[%emt 0:05:19]} 25. bxc3 {[%emt 0:00:00] [#] Rf4 is the strong threat.} ({Less strong is} 25. Qxc3 g5 26. Rc4 b5 27. axb6 Nxb6 $16) 25... Qf8 {[%emt 0:00:10]} 26. c4 {[%emt 0:00:17]} Qg7 {[%emt 0:00:55]} 27. Re1 {[%emt 0:03:22]} Rxe1+ {[%emt 0:00:35]} 28. Qxe1 {[%emt 0:00:04]} ({Weaker is} 28. Bxe1 Re8 29. Bd2 Re7 $18) 28... Ndf6 $2 {[%emt 0:00:38]} (28... Ne5 29. Re4 Nf6) 29. Bc3 {[%emt 0:01:00]} Qc7 {[%emt 0:01:58]} 30. Rf4 {[%emt 0:02:00]} Re8 {[%emt 0:01:23]} 31. Qb1 {[%emt 0:00:16]} Nh5 {[%emt 0:01:59]} 32. Rg4 {[%emt 0:00:11][%csl Gg4][%cal Rb1g6]} Ne7 {[%emt 0:00:50]} 33. Be4 {[%emt 0:01:11][%cal Re4g6] Repels Nf5. A strong pair of Bishops.} Rg8 {[%emt 0:00:03]} 34. Rh4 {[%emt 0:02:40]} Ng7 {[%emt 0:00:07]} 35. Rf4 {[%emt 0:01:48] Threatening mate with Rf7.} Nef5 {[%emt 0:03:56]} 36. Bxf5 {[%emt 0:02:11]} gxf5 {[%emt 0:00:40] Black is weak on the dark squares} 37. Rxf5 {[%emt 0:00:05]} Nxf5 {[%emt 0:00:06]} 38. Qxf5+ {[%emt 0:00:03] KQR-KQB} Rg6 {[%emt 0:00:07]} 39. h4 {[%emt 0:00:04] White mates.} h5 {[%emt 0:00:06]} 40. Qxh5+ {[%emt 0:00:03]} Rh6 {[%emt 0:00:05]} 41. Qf5+ {[%emt 0:00:03]} Kg8 {[%emt 0:00:07]} 42. Qg5+ {[%emt 0:00:03] Weighted Error Value: White=0.20 (precise) /Black=0.54} 1-0

[Event "14th Chennai GM Open 2023"]
[Site "Chennai"]
[Date "2024.01.06"]
[Round "9.3"]
[White "Buscara, Sevan"]
[Black "Pawar, Harshit"]
[Result "1/2-1/2"]
[ECO "A00"]
[WhiteElo "2359"]
[BlackElo "1945"]
[Annotator "RC"]
[PlyCount "85"]
[EventDate "2023.12.31"]
[EventType "swiss"]
[EventCountry "IND"]
[SourceTitle "playchess.com"]
[Source "ChessBase"]
[SourceQuality "1"]
[TimeControl "5400+30"]

1. g3 {[%emt 0:00:06]} e5 {[%emt 0:00:31]} 2. Bg2 {[%emt 0:00:06]} d5 {[%emt 0:00:02]} 3. c4 {[%emt 0:01:37]} dxc4 {[%emt 0:04:04]} 4. Qa4+ {[%emt 0:06:22]} c6 {[%emt 0:00:18]} 5. Qxc4 {[%emt 0:02:11]} Be6 {[%emt 0:00:03]} 6. Qc2 {[%emt 0:00:39]} g6 {[%emt 0:16:07]} 7. Nf3 {[%emt 0:00:53]} Bg7 {[%emt 0:00:08]} 8. Nc3 {[%emt 0:01:44]} h6 {[%emt 0:00:26]} 9. Ne4 {[%emt 0:05:27]} Ne7 {[%emt 0:03:28]} 10. Nc5 {[%emt 0:04:16]} Bc8 {[%emt 0:00:02]} 11. O-O {[%emt 0:01:59]} O-O {[%emt 0:01:18]} 12. d4 {[%emt 0:01:46]} exd4 {[%emt 0:00:55]} 13. Rd1 {[%emt 0:02:44]} Bf5 {[%emt 0:10:54]} 14. Qa4 {[%emt 0:05:00]} Qb6 {[%emt 0:01:05]} 15. Qa3 {[%emt 0:02:00]} Rd8 {[%emt 0:16:47]} 16. Na4 {[%emt 0:03:17]} Qc7 {[%emt 0:00:58]} 17. Bf4 {[%emt 0:00:11]} Qd7 {[%emt 0:00:17]} 18. Nxd4 {[%emt 0:11:04]} Na6 {[%emt 0:04:20]} 19. Be3 {[%emt 0:06:28]} Qe8 {[%emt 0:01:45]} 20. Qb3 {[%emt 0:02:23]} Rd7 {[%emt 0:05:04]} 21. Nxf5 {[%emt 0:01:54]} Nxf5 {[%emt 0:00:32]} 22. Rxd7 {[%emt 0:00:20]} Qxd7 {[%emt 0:00:07]} 23. Bh3 {[%emt 0:00:51]} b5 {[%emt 0:01:18]} 24. Nc5 {[%emt 0:01:46]} Nxc5 {[%emt 0:00:13]} 25. Bxc5 {[%emt 0:00:03]} Rd8 {[%emt 0:01:26]} 26. Qb4 {[%emt 0:07:28]} Qd2 {[%emt 0:09:44]} 27. e4 {[%emt 0:10:41]} Qxb4 {[%emt 0:03:21]} 28. Bxb4 {[%emt 0:00:06]} Nd4 {[%emt 0:02:03]} 29. Bc5 {[%emt 0:00:55]} Nf3+ {[%emt 0:01:17]} 30. Kg2 {[%emt 0:01:22]} Ng5 {[%emt 0:00:53]} 31. Rc1 {[%emt 0:06:29]} Nxe4 {[%emt 0:04:40]} 32. Bxa7 {[%emt 0:00:20]} Rd2 {[%emt 0:01:26]} 33. Rxc6 {[%emt 0:05:32]} Rxb2 {[%emt 0:00:21]} 34. Rc8+ {[%emt 0:00:23]} Kh7 {[%emt 0:00:02]} 35. Rc7 {[%emt 0:00:28]} Kg8 {[%emt 0:00:44]} 36. Be6 {[%emt 0:03:28]} fxe6 {[%emt 0:01:05]} 37. Rxg7+ {[%emt 0:00:07]} Kxg7 {[%emt 0:00:07]} 38. Bd4+ {[%emt 0:00:03]} Kf7 {[%emt 0:01:03]} 39. Bxb2 {[%emt 0:00:04]} b4 {[%emt 0:06:16]} 40. Kf3 {[%emt 0:01:34]} Nc5 {[%emt 0:00:26]} 41. Ke3 {[%emt 0:01:03]} b3 {[%emt 0:00:47]} 42. axb3 {[%emt 0:02:17]} Nxb3 {[%emt 0:00:02]} 43. Bc3 {[%emt 0:00:58]} 1/2-1/2

[Event "14th Chennai GM Open 2023"]
[Site "Chennai"]
[Date "2024.01.06"]
[Round "9.4"]
[White "Manik, Mikulas"]
[Black "Nguyen, Duc Hoa"]
[Result "0-1"]
[ECO "B30"]
[WhiteElo "2343"]
[BlackElo "2322"]
[Annotator "RC"]
[PlyCount "88"]
[EventDate "2023.12.31"]
[EventType "swiss"]
[EventCountry "IND"]
[SourceTitle "playchess.com"]
[Source "ChessBase"]
[SourceQuality "1"]
[TimeControl "5400+30"]

1. e4 {[%emt 0:00:03]} c5 {[%emt 0:02:53]} 2. Nf3 {[%emt 0:00:03]} Nc6 {[%emt 0:00:19]} 3. Bb5 {[%emt 0:00:08]} e6 {[%emt 0:00:16]} 4. O-O {[%emt 0:00:12]} a6 {[%emt 0:02:03]} 5. Bxc6 {[%emt 0:00:44]} bxc6 {[%emt 0:00:09]} 6. e5 {[%emt 0:13:52]} f6 {[%emt 0:02:43]} 7. d4 {[%emt 0:01:21]} cxd4 {[%emt 0:01:36]} 8. Qxd4 {[%emt 0:00:11]} c5 {[%emt 0:00:29]} 9. Qe4 {[%emt 0:04:12]} Rb8 {[%emt 0:00:35]} 10. Nc3 {[%emt 0:00:32]} Bb7 {[%emt 0:29:30]} 11. Qe2 {[%emt 0:00:14]} Be7 {[%emt 0:08:29]} 12. Rd1 {[%emt 0:04:44]} Qc7 {[%emt 0:08:09]} 13. Bf4 {[%emt 0:04:45]} g5 {[%emt 0:03:22]} 14. Bg3 {[%emt 0:04:55]} f5 {[%emt 0:00:46]} 15. Nxg5 {[%emt 0:01:45]} h5 {[%emt 0:00:05]} 16. Bh4 {[%emt 0:07:58]} Bc6 {[%emt 0:00:07]} 17. f4 {[%emt 0:06:51]} Rb4 {[%emt 0:01:27]} 18. Rf1 {[%emt 0:04:10]} Bd8 {[%emt 0:04:55]} 19. Rad1 {[%emt 0:01:50]} Ne7 {[%emt 0:04:33]} 20. b3 {[%emt 0:01:24]} Qb7 {[%emt 0:03:24]} 21. Nh3 {[%emt 0:08:51]} Ng6 {[%emt 0:03:20]} 22. Bxd8 {[%emt 0:01:16]} Kxd8 {[%emt 0:00:04]} 23. Rd3 {[%emt 0:07:12]} h4 {[%emt 0:01:48]} 24. Rf2 {[%emt 0:00:16]} Rg8 {[%emt 0:00:43]} 25. Qe3 {[%emt 0:02:05]} c4 {[%emt 0:09:24]} 26. Rdd2 {[%emt 0:02:05]} cxb3 {[%emt 0:00:28]} 27. cxb3 {[%emt 0:02:56]} Kc8 {[%emt 0:00:51]} 28. Qc5 {[%emt 0:05:36]} Kb8 {[%emt 0:02:28]} 29. Rd4 {[%emt 0:03:01]} Rb6 {[%emt 0:00:13]} 30. Rdd2 {[%emt 0:03:12]} Ka8 {[%emt 0:00:19]} 31. Qe3 {[%emt 0:01:23]} Rb4 {[%emt 0:00:28]} 32. Rd6 {[%emt 0:04:31]} Rg7 {[%emt 0:04:06]} 33. Rdd2 {[%emt 0:00:21]} Qc7 {[%emt 0:01:53]} 34. Qc5 {[%emt 0:01:15]} Qb8 {[%emt 0:01:12]} 35. Qe3 {[%emt 0:00:12]} Rg8 {[%emt 0:01:12]} 36. Rd6 {[%emt 0:00:57]} Qb7 {[%emt 0:00:43]} 37. Rdd2 {[%emt 0:00:08]} Rc8 {[%emt 0:00:24]} 38. Rfe2 {[%emt 0:01:24]} Rc7 {[%emt 0:00:46]} 39. Rf2 {[%emt 0:00:15]} Qc8 {[%emt 0:00:13]} 40. Ne2 {[%emt 0:00:41]} Re4 {[%emt 0:00:21]} 41. Qb6 {[%emt 0:01:10]} Bb5 {[%emt 0:00:45]} 42. a4 {[%emt 0:01:19]} Rc1+ {[%emt 0:00:26]} 43. Rf1 {[%emt 0:00:05]} Rxf1+ {[%emt 0:00:41]} 44. Kxf1 {[%emt 0:00:04]} Qc1+ {[%emt 0:00:05]} 0-1

[Event "14th Chennai GM Open 2023"]
[Site "Chennai"]
[Date "2024.01.06"]
[Round "9.5"]
[White "Abhishek, Kelkar"]
[Black "Aronyak Ghosh"]
[Result "1/2-1/2"]
[ECO "B12"]
[WhiteElo "2204"]
[BlackElo "2545"]
[Annotator "TA"]
[PlyCount "51"]
[EventDate "2023.12.31"]
[EventType "swiss"]
[EventCountry "IND"]
[SourceTitle "playchess.com"]
[Source "ChessBase"]
[SourceQuality "1"]
[TimeControl "5400+30"]

{[%evp 9,51,-24,-34,-71,-80,-102,15,-10,-4,-47,-11,-9,0,0,0,-3,0,0,54,65,63,46,76,45,60,55,50,53,57,42,60,58,70,64,89,18,90,0,93,0,97,0,94,0]} 1. e4 {[%emt 0:02:49]} c6 {[%emt 0:02:00]} 2. d4 {[%emt 0:00:19]} d5 {[%emt 0:00:05]} 3. e5 {[%emt 0:00:31]} Bf5 {[%emt 0:00:25]} 4. h4 {[%emt 0:00:58]} h5 {[%emt 0:02:09]} 5. Bg5 {[%emt 0:00:31]} Qb6 {[%emt 0:03:12]} 6. Bd3 {[%emt 0:02:46] B12: Caro-Kann: Advance Variation.} Bxd3 {[%emt 0:01:00]} 7. Qxd3 {[%emt 0:00:06][%cal Oe5e6]} Qa6 {[%emt 0:01:24]} ({Black should try} 7... Qxb2 $17 8. Qc3 Qxc3+ 9. Nxc3 e6) 8. Qh3 {[%emt 0:00:50][%cal Rh3c8] [#] The position is equal.} (8. Qxa6 {simplifies} Nxa6 9. Nf3 e6 10. O-O) 8... e6 $1 {[%emt 0:01:25]} 9. Ne2 {[%emt 0:00:12]} Ne7 {[%emt 0:05:08][%cal Oc6c5]} 10. Nbc3 {[%emt 0:01:12]} Nd7 {[%emt 0:00:35]} 11. O-O $36 {[%emt 0:00:08][%mdl 2048] White has the initiative.} Nf5 {[%emt 0:00:52]} 12. Rfd1 {[%emt 0:00:06]} Be7 {[%emt 0:04:00]} 13. Ng3 {[%emt 0:00:37]} g6 {[%emt 0:12:19]} (13... Nxg3 $11 14. Qxg3 Bxg5 15. Qxg5 g6) 14. Nxf5 $14 {[%emt 0:04:40]} gxf5 {[%emt 0:00:11] [#]} 15. Qe3 $146 {[%emt 0:00:06]} ({Predecessor:} 15. Bxe7 Kxe7 16. a4 Rag8 17. b4 Qc4 18. Qe3 Rg7 19. f3 Rhg8 20. Rd2 f4 21. Qd3 Qxd3 22. cxd3 {½-½ Mohammad Fahad,R (2307)-Zia,T (2092) Dhaka Bangabandhu op-A 2021 (6)}) 15... Qb6 {[%emt 0:03:49]} 16. b3 {[%emt 0:25:52]} Qd8 {[%emt 0:00:58]} 17. Ne2 {[%emt 0:03:46]} Nf8 {[%emt 0:03:54]} 18. f4 {[%emt 0:04:09]} Ng6 {[%emt 0:02:01]} 19. g3 {[%emt 0:00:20]} Bxg5 {[%emt 0:00:44]} 20. fxg5 {[%emt 0:01:09]} Kf8 {[%emt 0:00:13]} 21. c4 {[%emt 0:10:50]} Kg7 {[%emt 0:00:57]} 22. Nc3 {[%emt 0:00:14]} (22. c5 $16) 22... Ne7 {[%emt 0:00:03]} (22... dxc4 $11 23. bxc4 Qc7) 23. Ne2 {[%emt 0:00:04] White is more active.} Ng6 {[%emt 0:00:04]} 24. Nc3 {[%emt 0:00:04]} Ne7 {[%emt 0:00:02]} 25. Ne2 {[%emt 0:00:06]} Ng6 {[%emt 0:00:03] [#]} 26. Nc3 {[%emt 0:00:08] Weighted Error Value: White=0.32/Black=0.23 (precise)} (26. c5 $1 $16) 1/2-1/2